bitfinex/quotes_ETHUSD_20240817
["timestamp","ask_amount","ask_price","bid_price","bid_amount"]
[1723910361658,2.3647,2612.0,2611.7,2.87163]
[1723910364009,2.2843,2612.2,2611.8,2.87157]
[1723910364166,2.2843,2612.2,2611.9,2.87141]
[1723910365185,7.304973,2612.2,2611.8,2.87157]
[1723910365408,7.304973,2612.2,2611.6,2.87171]
[1723910365409,3.6033,2612.1,2611.7,2.87168]
[1723910365609,4.4656973,2612.1,2611.7,2.87168]
[1723910369021,2.2843,2612.0,2611.6,2.87171]
[1723910369809,2.2843,2612.0,2611.4,3.0]
[1723910370134,2.3087,2612.2,2611.8,2.87152]
[1723910371125,2.3087,2612.0,2611.6,2.87172]
[1723910371341,2.3087,2612.0,2611.6,2.87179]
[1723910376949,2.3087,2612.0,2611.7,2.87168]
[1723910378232,2.3087,2612.0,2611.6,2.87179]
[1723910378749,2.3087,2612.0,2611.6,5.74358]
[1723910379050,2.3087,2612.0,2611.6,2.87179]
[1723910379955,2.3087,2612.0,2611.6,2.87175]
[1723910383650,2.3087,2612.0,2611.6,5.7435]
[1723910383862,2.3087,2612.0,2611.6,2.87175]
[1723910387140,2.3087,2612.0,2611.7,2.87168]
[1723910388464,2.3087,2612.0,2611.7,2.87165]
[1723910389466,2.4364,2612.2,2611.7,2.87165]
[1723910389774,2.4364,2612.2,2611.9,2.87145]
[1723910391550,2.4364,2612.2,2611.8,2.87157]
[1723910391757,6.62656,2612.2,2611.8,2.87157]
[1723910391944,7.23989404,2612.2,2611.8,2.87157]
[1723910394043,6.62656,2612.2,2611.8,2.87157]
[1723910394242,5.30756,2612.2,2611.8,2.87157]
[1723910401532,4.18993,2612.4,2611.8,2.87157]
[1723910401821,2.87104,2612.3,2611.8,2.87157]
[1723910402316,2.4274,2612.2,2611.8,2.87157]
[1723910403079,2.4274,2612.2,2611.8,2.87152]
[1723910403317,2.4274,2612.2,2611.9,2.87147]
[1723910404580,2.4274,2612.2,2611.9,2.87139]
[1723910405232,2.4274,2612.4,2612.2,2.87106]
[1723910406631,2.4274,2612.7,2612.4,2.87091]
[1723910406936,2.4274,2612.7,2612.2,5.74209]
[1723910407485,2.4274,2612.7,2612.3,0.07655432]
[1723910407718,2.79783787,2612.9,2612.8,2.87048]
[1723910407899,2.79783787,2612.9,2612.8,5.74096]
[1723910408527,2.4274,2613.3,2612.9,2.87037]
[1723910408721,6.61634,2613.3,2612.8,2.87048]
[1723910408901,7.277962,2613.3,2612.8,2.87048]
[1723910409232,3.7464,2613.3,2612.8,5.7409]
[1723910409825,2.4274,2613.3,2612.8,5.7409]
[1723910410134,2.4274,2613.3,2612.9,2.87036]
[1723910410286,2.4274,2613.3,2613.1,2.87014]
[1723910410717,4.18853,2613.7,2613.1,5.74023]
[1723910410918,5.297,2613.6,2612.9,2.87031]
[1723910411116,2.86977,2613.5,2612.9,5.74063]
[1723910412056,5.297,2613.6,2613.0,2.87024]
[1723910412621,5.297,2613.6,2613.0,5.74042]
[1723910413122,5.297,2613.6,2613.1,2.87013]
[1723910414644,10.31907,2614.1,2613.4,2.86982]
[1723910414645,5.29672,2613.9,2613.4,2.86982]
[1723910414848,2.86939,2613.8,2613.3,2.86991]
[1723910415021,5.297,2613.6,2613.1,35.0]
[1723910415383,4.18879,2613.5,2613.1,35.0]
[1723910415523,2.86979,2613.5,2613.1,35.0]
[1723910415724,2.4274,2613.4,2612.6,8.74126]
[1723910415973,2.4274,2613.4,2612.4,2.87087]
[1723910415974,5.29772,2613.0,2612.4,2.87087]
[1723910416189,2.4274,2613.0,2612.6,2.87068]
[1723910416822,2.4274,2613.0,2612.6,2.87064]
[1723910417027,5.2974,2613.3,2612.6,2.87064]
[1723910417767,2.4274,2612.8,2612.4,2.87081]
[1723910420548,2.4274,2612.8,2612.2,5.87106]
[1723910420840,2.4274,2612.8,2612.5,2.87073]
[1723910422149,5.29788,2612.8,2612.3,4.18995]
[1723910422347,5.29788,2612.8,2612.2,3.0]
[1723910422348,2.87072,2612.6,2612.2,3.0]
[1723910422862,2.87072,2612.6,2612.2,5.87113]
[1723910423164,5.29796,2612.8,2612.2,5.87113]
[1723910423361,2.3123,2612.6,2612.2,3.0]
[1723910423966,2.3123,2612.6,2612.1,40.74234]
[1723910424322,2.3123,2612.6,2612.2,2.87111]
[1723910424864,2.3123,2612.6,2612.3,5.742]
[1723910425060,2.3123,2612.6,2612.3,2.87097]
[1723910427133,5.7411,2612.8,2612.4,35.0]
[1723910427354,5.74108,2612.8,2612.4,35.0]
[1723910427664,2.8706,2612.7,2612.3,2.87097]
[1723910428843,2.8706,2612.7,2612.2,36.319]
[1723910429044,2.8706,2612.7,2612.2,39.19008]
[1723910431663,2.8705,2612.8,2612.3,2.87101]
[1723910431967,2.8705,2612.8,2612.3,2.87098]
[1723910432138,2.8705,2612.8,2612.3,2.87097]
[1723910432343,2.8705,2612.8,2612.3,5.74194]
[1723910432555,2.8705,2612.8,2612.3,2.87097]
[1723910432863,8.769,2613.1,2612.5,2.417]
[1723910432864,7.45,2613.1,2612.5,2.417]
[1723910433066,7.45,2613.1,2612.6,2.87061]
[1723910433280,7.45,2613.1,2612.8,2.87046]
[1723910435261,2.3123,2613.2,2612.8,2.87046]
[1723910435766,5.1824,2613.2,2612.6,4.18961]
[1723910435954,2.3123,2612.9,2612.4,4.18984]
[1723910436155,2.3123,2612.9,2612.5,2.87081]
[1723910436989,2.87049,2612.8,2612.2,41.736]
[1723910437155,5.18272,2612.9,2612.4,2.8709]
[1723910437338,5.18272,2612.9,2612.3,5.74193]
[1723910437838,5.18272,2612.9,2612.3,2.87096]
[1723910438265,5.18272,2612.9,2612.4,2.87092]
[1723910438452,2.87054,2612.8,2612.2,38.0]
[1723910438647,2.3123,2612.7,2612.2,35.0]
[1723910438846,2.87071,2612.6,2612.1,2.87115]
[1723910439053,2.87071,2612.6,2612.1,5.74234]
[1723910439274,2.3123,2612.5,2611.9,4.1904]
[1723910439471,2.3123,2612.5,2611.7,4.1906]
[1723910439776,2.3104,2612.3,2611.9,2.87141]
[1723910439973,2.3104,2612.3,2611.9,5.74282]
[1723910441798,5.18111,2612.6,2612.1,2.87124]
[1723910442697,2.87081,2612.5,2612.1,2.87124]
[1723910443094,8.0519,2612.6,2612.0,2.87136]
[1723910443326,2.3104,2612.6,2612.3,2.87095]
[1723910443554,2.3104,2612.6,2612.3,5.74192]
[1723910443847,2.3104,2612.6,2612.3,2.87095]
[1723910445351,2.3104,2612.6,2611.9,2.87146]
[1723910445799,2.3104,2612.6,2612.2,2.87105]
[1723910446204,3.115548,2612.6,2612.2,2.87105]
[1723910447333,5.1811,2612.6,2612.2,2.87105]
[1723910447737,5.1811,2612.6,2611.9,2.87141]
[1723910448936,5.1811,2612.6,2612.1,2.87122]
[1723910451145,2.87082,2612.5,2612.1,2.87122]
[1723910451338,2.3104,2612.6,2612.1,2.87122]
[1723910451538,5.18112,2612.6,2612.1,2.87122]
[1723910452044,2.3745,2612.2,2611.8,2.87157]
[1723910452208,5.2457,2612.2,2611.7,2.87162]
[1723910452838,5.2457,2612.2,2611.6,2.87178]
[1723910452839,2.3745,2612.2,2611.8,2.87157]
[1723910455646,2.3745,2612.2,2611.7,2.87168]
[1723910456235,2.3745,2612.2,2611.8,2.87157]
[1723910458671,2.3745,2612.2,2611.8,2.67157]
[1723910458882,2.3745,2612.2,2612.0,2.87131]
[1723910459070,2.3745,2612.5,2612.0,2.87131]
[1723910459375,2.3745,2612.5,2612.3,2.87097]
[1723910460036,2.3099,2612.9,2612.0,2.4267]
[1723910460234,2.3099,2612.9,2612.6,2.8706]
[1723910461174,2.3099,2612.9,2612.4,5.74166]
[1723910461375,2.827917,2612.9,2612.4,5.74166]
[1723910461579,2.8705,2612.8,2612.4,2.87083]
[1723910461749,2.827917,2612.9,2612.4,2.87083]
[1723910462477,2.827917,2612.9,2612.4,5.74169]
[1723910462788,2.3099,2612.9,2612.4,5.74169]
[1723910462949,2.3099,2612.9,2612.5,2.87077]
[1723910463666,2.3099,2612.9,2612.3,2.87092]
[1723910464180,2.3099,2612.9,2612.2,2.87112]
[1723910464393,2.3099,2613.1,2612.7,2.87056]
[1723910464581,2.3099,2613.1,2612.7,5.74107]
[1723910464887,2.3099,2613.1,2612.7,2.87053]
[1723910465056,2.3099,2613.1,2612.7,5.74106]
[1723910465266,2.3099,2613.1,2612.7,2.87053]
[1723910465888,2.3099,2613.1,2612.8,2.87045]
[1723910466249,2.827884,2613.1,2612.5,2.87072]
[1723910466484,5.18013,2613.1,2612.6,5.87064]
[1723910468187,2.3099,2613.1,2612.7,2.87057]
[1723910469005,3.114894,2613.1,2612.7,2.87057]
[1723910469153,2.3099,2613.0,2612.6,3.0]
[1723910469349,2.3099,2613.0,2612.6,5.8707]
[1723910469655,2.3099,2613.0,2612.7,2.87056]
[1723910470278,2.3099,2613.0,2612.9,2.87037]
[1723910470860,11.85783352,2614.0,2612.6,3.0]
[1723910470861,2.3099,2613.4,2613.0,2.87024]
[1723910471181,7.33,2613.9,2612.7,2.4267]
[1723910471182,2.3099,2613.9,2613.2,2.86998]
[1723910471380,2.3099,2613.9,2613.4,2.8698]
[1723910471381,5.17926,2613.9,2613.4,2.8698]
[1723910471568,2.3099,2613.7,2613.2,2.86996]
[1723910471768,2.3099,2613.7,2613.3,2.86992]
[1723910474686,2.3099,2613.7,2613.3,2.86987]
[1723910474883,2.827835,2613.7,2613.3,2.86987]
[1723910475507,5.697325,2613.7,2613.3,2.86987]
[1723910475690,5.697325,2613.7,2613.0,2.87024]
[1723910475691,2.3099,2613.4,2613.0,2.87024]
[1723910476166,2.3099,2613.4,2613.1,2.87013]
[1723910476717,2.3099,2613.4,2613.1,5.74026]
[1723910477022,2.86967,2613.6,2613.3,2.86985]
[1723910477023,2.3099,2613.6,2613.3,2.86985]
[1723910478355,2.3099,2613.5,2613.1,2.87007]
[1723910478459,2.54089,2613.5,2613.1,2.87007]
[1723910478659,2.86994,2613.3,2612.7,2.87052]
[1723910478862,3.123989,2613.4,2612.6,2.87068]
[1723910479109,5.17999,2613.2,2612.7,2.87052]
[1723910479579,2.3099,2613.2,2612.8,2.87046]
[1723910479782,2.3099,2613.2,2612.8,2.87042]
[1723910480612,2.3099,2613.2,2612.9,2.87028]
[1723910481798,2.3099,2613.2,2613.0,2.87025]
[1723910481996,2.4283,2613.6,2613.2,2.87003]
[1723910482665,2.4283,2613.6,2613.0,2.87019]
[1723910482872,2.4283,2613.4,2613.0,2.87019]
[1723910483498,2.4283,2613.4,2612.6,5.3429]
[1723910483499,5.29818,2613.4,2612.9,2.87036]
[1723910483670,0.529801,2613.3,2612.9,2.87036]
[1723910484666,2.4283,2613.2,2612.9,2.87036]
[1723910485071,0.529801,2613.3,2612.4,2.87087]
[1723910485072,2.4283,2612.9,2612.4,2.87087]
[1723910485271,5.29872,2612.9,2612.4,2.87087]
[1723910487779,2.4283,2612.9,2612.5,2.87081]
[1723910488279,2.4283,2612.9,2612.5,2.87075]
[1723910488991,2.4283,2612.9,2612.6,2.87059]
[1723910489191,2.4283,2612.9,2612.7,2.87054]
[1723910489711,2.4283,2612.9,2612.6,2.87059]
[1723910490115,2.4283,2612.9,2612.6,5.7412]
[1723910490702,2.4283,2612.9,2612.6,2.87059]
[1723910491233,2.4283,2612.9,2612.7,2.87059]
[1723910491534,2.4283,2612.9,2612.5,2.87073]
[1723910493202,3.68725,2612.9,2612.4,2.87084]
[1723910493416,2.4283,2612.8,2612.4,2.87084]
[1723910493924,2.4283,2612.8,2612.4,5.74171]
[1723910494125,2.4283,2612.8,2612.5,2.87079]
[1723910494494,2.4283,2612.8,2612.6,2.87068]
[1723910494705,2.4283,2613.1,2612.8,2.87048]
[1723910495131,2.4283,2613.1,2612.8,2.8704]
[1723910497150,2.4283,2613.1,2612.8,5.74083]
[1723910497321,2.4283,2613.1,2612.9,2.87036]
[1723910498042,2.4283,2613.1,2612.8,2.8704]
[1723910499030,2.4283,2613.1,2612.9,2.87032]
[1723910500810,2.4283,2613.1,2612.8,2.87048]
[1723910501051,2.958124,2613.1,2612.7,2.87054]
[1723910503454,2.4283,2613.1,2612.7,2.87054]
[1723910511392,2.4283,2613.1,2612.8,2.87048]
[1723910511593,2.4283,2613.1,2612.8,2.87042]
[1723910511991,2.4283,2613.1,2612.8,5.74085]
[1723910512295,2.4283,2613.1,2612.8,2.87042]
[1723910519615,2.958134,2613.1,2612.8,2.87042]
[1723910519841,2.958134,2613.1,2612.4,3.31539731]
[1723910520004,5.828334,2613.1,2612.6,2.87069]
[1723910521335,0.8698374,2613.0,2612.6,2.87069]
[1723910522502,0.8698374,2613.0,2612.5,5.87072]
[1723910522715,5.2985,2613.1,2612.7,2.87058]
[1723910524043,2.4283,2613.1,2612.7,5.74112]
[1723910524239,2.4283,2613.1,2612.7,5.74108]
[1723910524610,2.4283,2613.1,2612.7,2.87054]
[1723910526660,2.4283,2613.1,2612.6,1.318]
[1723910526661,2.3425,2613.3,2613.1,2.87011]
[1723910528120,2.3425,2613.3,2613.1,5.74019]
[1723910528545,2.3425,2613.5,2613.2,2.86995]
[1723910531561,2.3425,2613.7,2613.3,2.86984]
[1723910531763,12.99290309,2614.0,2613.5,2.86971]
[1723910531764,15.33540309,2614.0,2613.5,2.86971]
[1723910532018,9.6725,2614.0,2613.5,2.86971]
[1723910532308,4.18685,2614.3,2613.7,2.86938]
[1723910532309,2.3425,2614.3,2613.7,2.86938]
[1723910532515,2.3425,2614.3,2614.1,2.86905]
[1723910532646,2.3425,2614.3,2614.0,2.86915]
[1723910532849,3.596619,2614.3,2613.9,2.86927]
[1723910533109,3.596619,2614.3,2613.8,4.18737]
[1723910533110,3.596619,2614.3,2614.0,2.86911]
[1723910533250,7.33,2614.4,2614.0,5.73819]
[1723910533448,7.33,2614.4,2614.0,2.8691]
[1723910533670,9.70961419,2614.4,2614.0,2.8691]
[1723910534151,9.70961419,2614.4,2614.1,2.86905]
[1723910534355,2.3425,2614.5,2614.2,2.86885]
[1723910535888,2.86841,2614.7,2614.3,2.86883]
[1723910536184,3.67632,2614.7,2614.1,2.86905]
[1723910536497,2.3425,2614.5,2614.1,2.86905]
[1723910536781,8.0798,2614.5,2614.0,2.8691]
[1723910536981,5.21113,2614.5,2614.0,2.8691]
[1723910537293,0.521113,2614.4,2614.0,2.8691]
[1723910538375,5.21113,2614.5,2614.0,2.8691]
[1723910539188,5.21113,2614.5,2614.0,2.86909]
[1723910540385,5.21113,2614.5,2613.6,5.2751]
[1723910540386,2.3425,2614.5,2614.2,2.86884]
[1723910540555,5.18007,2614.7,2614.2,2.86884]
[1723910540750,0.286847,2614.6,2614.2,2.86884]
[1723910540951,5.18007,2614.7,2614.2,2.86884]
[1723910544008,5.18005,2614.7,2614.2,2.86884]
[1723910544894,2.3116,2614.5,2614.1,2.86904]
[1723910545075,2.3116,2614.5,2613.6,5.86955]
[1723910545076,2.3116,2614.4,2613.9,2.86922]
[1723910545285,2.3116,2614.4,2614.0,2.86915]
[1723910546002,5.18039,2614.4,2613.9,2.86927]
[1723910546165,0.804894,2614.3,2613.9,2.86927]
[1723910546360,3.673734,2614.3,2613.9,2.86927]
[1723910547798,2.8691,2614.1,2613.5,5.73927]
[1723910548004,5.73823,2614.1,2613.5,5.73927]
[1723910548198,2.8691,2614.1,2613.5,5.73927]
[1723910548406,2.8691,2614.1,2613.5,2.86961]
[1723910548701,2.8691,2614.1,2613.6,2.86955]
[1723910548922,3.73391334,2614.1,2613.6,2.86955]
[1723910549264,3.73391334,2614.1,2613.4,2.86982]
[1723910549265,2.86925,2614.0,2613.4,2.86982]
[1723910549493,5.18093,2613.9,2613.3,2.86984]
[1723910549902,5.18093,2613.9,2613.2,2.86996]
[1723910549903,2.86946,2613.8,2613.2,2.86996]
[1723910550225,2.86946,2613.8,2613.2,5.73994]
[1723910550427,2.3116,2613.7,2613.2,5.73994]
[1723910550970,2.3116,2613.7,2613.3,2.86991]
[1723910553083,5.18111,2613.7,2613.2,2.87003]
[1723910553674,5.18111,2613.7,2613.2,5.74]
[1723910553974,2.3116,2613.7,2613.3,2.86992]
[1723910555573,5.18112,2613.7,2613.2,2.86997]
[1723910555979,5.18112,2613.7,2613.3,2.86993]
[1723910556382,5.18112,2613.7,2613.2,2.86997]
[1723910557106,5.18112,2613.7,2613.2,5.73995]
[1723910557294,5.18112,2613.7,2613.2,2.86997]
[1723910557495,2.86961,2613.6,2613.1,2.87015]
[1723910557697,2.3116,2613.6,2613.2,2.87]
[1723910557895,2.3116,2613.6,2613.3,2.86993]
[1723910558380,2.3116,2613.6,2613.1,7.05821]
[1723910558616,2.3116,2613.6,2613.1,4.18806]
[1723910559480,5.18122,2613.6,2613.1,2.87005]
[1723910560116,5.18122,2613.6,2613.1,5.74014]
[1723910560533,5.18122,2613.6,2613.1,2.87005]
[1723910562249,2.86976,2613.5,2613.0,4.18824]
[1723910562458,2.4747,2613.4,2613.0,2.87024]
[1723910562950,2.4747,2613.4,2613.0,5.74043]
[1723910563115,2.4747,2613.4,2613.1,2.87013]
[1723910564299,2.4747,2613.4,2613.2,2.87003]
[1723910566259,2.4747,2613.7,2613.2,1.318]
[1723910566533,2.4747,2613.7,2613.4,2.86977]
[1723910574142,2.4747,2613.7,2613.4,5.73954]
[1723910574346,2.4747,2613.7,2613.4,2.86977]
[1723910574552,5.26517,2613.9,2613.4,2.86977]
[1723910575047,2.86938,2613.8,2613.4,2.86977]
[1723910577497,2.86938,2613.8,2613.2,4.18797]
[1723910577498,2.3959,2613.6,2613.2,5.73995]
[1723910579003,2.3959,2613.5,2613.0,2.8702]
[1723910579184,5.26561,2613.5,2613.0,2.8702]
[1723910580192,5.26561,2613.5,2613.0,2.87019]
[1723910581025,5.26561,2613.5,2613.1,2.87013]
[1723910581228,2.3959,2613.5,2613.1,4.18813]
[1723910581531,5.26565,2613.5,2613.0,2.87019]
[1723910581675,2.86982,2613.4,2613.0,2.87019]
[1723910581877,2.86982,2613.4,2612.9,2.87037]
[1723910582073,2.3868,2613.3,2612.9,2.87037]
[1723910583991,2.3868,2613.3,2613.0,2.87025]
[1723910584183,2.3868,2613.3,2613.1,2.87012]
[1723910585023,2.3868,2613.5,2613.1,2.87012]
[1723910586334,2.3868,2613.7,2613.3,2.86988]
[1723910586470,2.3868,2613.7,2613.3,5.73976]
[1723910586910,2.3868,2613.7,2613.3,5.73975]
[1723910587220,2.3868,2614.0,2613.6,2.8696]
[1723910587388,7.38,2614.1,2613.6,4.18759]
[1723910587613,2.3868,2614.3,2613.9,2.86919]
[1723910587903,19.81,2614.4,2614.0,5.73819]
[1723910588878,19.81,2614.4,2614.1,2.86903]
[1723910589215,2.3868,2614.5,2614.0,2.86909]
[1723910589545,7.875755,2614.5,2614.0,2.86909]
[1723910591433,2.86872,2614.4,2613.9,2.86927]
[1723910591637,2.620335,2614.5,2614.0,2.86914]
[1723910591835,5.73712,2614.6,2614.0,2.86909]
[1723910592136,5.25544,2614.5,2614.0,2.86909]
[1723910592638,2.86883,2614.3,2613.8,2.8693]
[1723910592950,0.573762,2614.2,2613.8,2.8693]
[1723910593160,2.86883,2614.3,2613.8,2.8693]
[1723910593847,2.86883,2614.3,2613.8,5.73862]
[1723910594615,2.86883,2614.3,2613.8,2.8693]
[1723910597008,2.86883,2614.3,2613.8,5.73862]
[1723910597210,2.86883,2614.3,2613.8,2.8693]
[1723910597730,2.86883,2614.3,2613.8,5.73863]
[1723910598504,2.86883,2614.3,2613.8,2.8693]
[1723910598838,3.813056,2614.3,2613.8,2.8693]
[1723910599203,3.813056,2614.3,2613.8,5.73862]
[1723910602331,7.39,2614.6,2613.9,2.2778]
[1723910602659,11.57651,2614.6,2614.1,2.86899]
[1723910606771,2.86861,2614.5,2614.1,2.86899]
[1723910606971,4.541259,2614.5,2614.1,2.86899]
[1723910608668,4.541259,2614.5,2614.0,2.86914]
[1723910609468,7.409939,2614.5,2614.0,2.86914]
[1723910609803,4.541259,2614.5,2614.0,2.86914]
[1723910611513,4.541259,2614.5,2614.1,2.86904]
[1723910612694,4.541259,2614.5,2614.0,2.86915]
[1723910613675,7.409939,2614.5,2614.0,2.86915]
[1723910613875,1.6117939,2614.4,2614.0,2.86915]
[1723910614322,2.2814,2614.3,2614.0,2.86915]
[1723910616301,2.86861,2614.5,2614.0,2.86915]
[1723910616302,5.15001,2614.5,2614.0,2.86915]
[1723910616725,5.15001,2614.5,2614.1,2.86903]
[1723910616923,5.15001,2614.5,2613.6,2.86958]
[1723910616924,2.2814,2614.5,2614.2,2.86894]
[1723910617135,7.39,2614.6,2614.2,2.86894]
[1723910619604,7.39,2614.6,2614.2,5.73782]
[1723910619803,7.39,2614.6,2614.2,2.86888]
[1723910620107,6.46782,2614.7,2614.2,2.86888]
[1723910622013,8.14044,2614.7,2614.2,2.86888]
[1723910622612,2.2942,2614.4,2614.0,5.73818]
[1723910622837,2.2942,2614.4,2614.1,2.86905]
[1723910623825,2.2942,2614.4,2614.0,2.86908]
[1723910625019,2.2942,2614.4,2614.0,5.73819]
[1723910626645,2.2942,2614.4,2614.1,2.869]
[1723910628249,5.16272,2614.6,2614.1,2.869]
[1723910629494,5.16272,2614.6,2614.2,2.86893]
[1723910629920,2.2942,2614.6,2614.2,2.86893]
[1723910632165,6.264879,2614.6,2614.2,2.86893]
[1723910632594,9.133439,2614.6,2614.0,5.73815]
[1723910632825,6.264879,2614.6,2614.0,2.86906]
[1723910633526,1.318,2614.1,2613.6,3.67130884]
[1723910633683,2.2942,2613.9,2613.5,2.8697]
[1723910633879,2.2942,2613.9,2613.4,2.86975]
[1723910633880,5.16349,2613.9,2613.4,2.86975]
[1723910636017,8.03283,2613.9,2613.4,2.86975]
[1723910636223,5.16349,2613.9,2613.4,2.86975]
[1723910643178,2.2942,2613.9,2613.6,2.86959]
[1723910643311,2.86913,2614.1,2613.7,2.86943]
[1723910643312,2.2942,2614.1,2613.7,2.86943]
[1723910644735,5.16326,2614.1,2613.7,2.86943]
[1723910645047,2.2942,2614.1,2613.7,2.86943]
[1723910649331,10.25897,2614.2,2613.8,2.86932]
[1723910649332,7.39,2614.2,2613.8,2.86932]
[1723910649669,2.3537,2614.3,2613.7,5.73886]
[1723910649670,5.22259,2614.3,2613.7,5.73886]
[1723910649852,6.54059,2614.3,2613.7,5.73885]
[1723910650038,6.54059,2614.3,2613.7,2.86942]
[1723910650238,6.54059,2614.3,2613.7,5.73886]
[1723910651534,5.22259,2614.3,2613.8,2.86936]
[1723910653435,21.9937,2614.5,2614.0,1.318]
[1723910653775,9.7437,2614.8,2614.3,5.73754]
[1723910653955,9.7437,2614.8,2614.3,2.86876]
[1723910654569,9.7437,2614.8,2614.3,5.73754]
[1723910654739,12.612,2614.8,2614.3,2.86876]
[1723910655078,2.3537,2614.5,2614.1,2.86896]
[1723910655282,3.6717,2614.5,2614.1,2.86896]
[1723910655582,2.3537,2614.5,2614.1,5.73795]
[1723910656282,2.3537,2614.5,2614.2,2.86892]
[1723910656579,19.95,2614.7,2614.1,2.86896]
[1723910656580,22.3037,2614.7,2614.3,2.86883]
[1723910656940,25.1721,2614.7,2614.2,2.86894]
[1723910657261,28.846934,2614.7,2614.2,2.86894]
[1723910658583,8.896934,2614.7,2614.2,2.86894]
[1723910658956,2.3537,2614.7,2614.3,2.86877]
[1723910663463,2.3537,2614.7,2614.3,5.73755]
[1723910663872,7.39,2614.8,2614.5,2.8686]
[1723910664570,22.3673,2614.9,2614.5,2.8686]
[1723910665590,27.890824,2614.9,2614.4,2.86872]
[1723910666168,1.318,2614.8,2614.4,2.86872]
[1723910668311,1.318,2614.8,2614.5,2.86861]
[1723910669436,4.2388824,2614.8,2614.4,2.86872]
[1723910670833,1.318,2614.8,2614.4,2.86872]
[1723910673855,5.28548,2614.9,2614.4,2.86872]
[1723910676540,25.23548,2614.9,2614.4,2.86872]
[1723910677050,25.23548,2614.9,2614.3,2.86877]
[1723910677247,2.8683,2614.8,2614.3,2.86877]
[1723910677447,2.3831,2614.7,2614.4,2.86872]
[1723910679543,2.3831,2614.7,2614.3,2.86881]
[1723910679758,2.3831,2614.7,2614.3,2.86877]
[1723910679929,2.3831,2614.7,2614.3,5.73755]
[1723910681074,2.3831,2614.7,2614.3,2.86877]
[1723910682065,2.3831,2614.7,2614.3,5.73754]
[1723910682267,2.3831,2614.7,2614.3,2.86877]
[1723910683534,2.3831,2614.7,2614.1,2.86897]
[1723910683535,5.67349655,2614.7,2614.2,2.86893]
[1723910686006,2.86855,2614.6,2614.1,2.86897]
[1723910686228,2.4989,2614.3,2613.8,2.86938]
[1723910686505,5.36774,2614.3,2613.8,2.86936]
[1723910687256,2.4989,2614.3,2613.7,2.86942]
[1723910687457,2.4989,2614.3,2613.9,2.86926]
[1723910689564,5.36775,2614.3,2613.8,2.86938]
[1723910690796,5.36775,2614.3,2613.6,4.1875]
[1723910691100,5.36785,2614.2,2613.6,4.1875]
[1723910691260,5.36785,2614.2,2613.7,2.86943]
[1723910691459,2.4989,2613.9,2613.4,2.86974]
[1723910691695,8.23753,2613.9,2613.4,2.86974]
[1723910691874,5.36819,2613.9,2613.4,2.86974]
[1723910693605,8.23752,2613.9,2613.4,2.86974]
[1723910693897,5.36819,2613.9,2613.4,2.86974]
[1723910695865,2.4989,2613.8,2613.2,4.18795]
[1723910697023,2.86951,2613.7,2613.3,2.86992]
[1723910697415,2.4989,2613.8,2613.3,2.86992]
[1723910697577,5.36829,2613.8,2613.3,2.86992]
[1723910699511,2.4989,2613.8,2613.4,2.86981]
[1723910700541,2.4989,2613.8,2613.4,4.18776]
[1723910700695,2.4989,2613.8,2613.6,2.86958]
[1723910700900,2.4989,2613.8,2613.5,2.8697]
[1723910701598,2.4989,2613.8,2613.4,2.86981]
[1723910702201,2.4989,2613.8,2613.4,2.86977]
[1723910702412,2.4989,2613.8,2613.4,2.86976]
[1723910703134,9.7299,2614.0,2613.6,2.86957]
[1723910703341,9.7299,2614.0,2613.5,2.8697]
[1723910703538,9.7299,2614.0,2613.8,2.86933]
[1723910703738,7.39,2614.0,2613.9,5.73854]
[1723910705739,2.3399,2614.5,2614.3,2.86878]
[1723910707369,2.3399,2614.5,2614.1,2.86895]
[1723910708133,2.3399,2614.5,2614.2,2.86889]
[1723910710432,2.3399,2614.5,2614.1,2.86895]
[1723910711868,5.27218,2614.4,2613.9,2.8692]
[1723910712209,2.86883,2614.3,2613.9,2.8692]
[1723910713669,2.4034,2614.2,2613.9,2.8692]
[1723910716211,2.4034,2614.2,2613.9,5.73842]
[1723910716580,2.86874,2614.4,2613.9,5.73842]
[1723910716581,5.27214,2614.4,2613.9,2.8692]
[1723910720119,5.27214,2614.4,2613.9,5.73839]
[1723910720474,5.27214,2614.4,2613.9,5.73841]
[1723910720723,5.27214,2614.4,2613.9,5.7384]
[1723910720921,5.27214,2614.4,2613.9,2.86919]
[1723910722906,8.14092,2614.4,2613.9,2.86919]
[1723910723083,6.218032,2614.4,2613.9,2.86919]
[1723910723284,2.869,2614.2,2613.7,2.86941]
[1723910723492,2.2757,2614.1,2613.7,2.86941]
[1723910723697,5.14476,2614.1,2613.6,2.8696]
[1723910726376,2.2757,2614.1,2613.7,2.86948]
[1723910729723,5.14477,2614.1,2613.7,2.86948]
[1723910730086,2.2757,2614.1,2613.7,2.86948]
[1723910732501,2.2757,2614.1,2613.8,2.86937]
[1723910732886,2.2757,2614.3,2614.0,2.86906]
[1723910734100,2.2757,2614.5,2614.1,2.86905]
[1723910734407,2.2757,2614.8,2614.3,5.7376]
[1723910734612,2.2757,2614.8,2614.4,2.86872]
[1723910735307,2.2757,2614.8,2614.5,2.8686]
[1723910735509,2.2757,2614.8,2614.6,2.86847]
[1723910736432,2.2757,2614.8,2614.5,2.8686]
[1723910737335,2.790077,2614.8,2614.5,2.8686]